fUST/lending_fUST_20260123
["ID","MTS","AMOUNT","RATE_DAILY","PERIOD"]
[403090474,1769147432805,-178.0,0.00019444,2]
[403090475,1769147432815,-5219.75750123,0.00019899,2]
[403090476,1769147432825,-133003.73350266,0.000199,2]
[403090586,1769147440722,-3e-08,0.000199,2]
[403090629,1769147446348,-9271.42475482,0.000199,2]
[403090630,1769147555126,176.82,0.00010551,2]
[403090631,1769147555534,221.03,0.00011304,2]
[403090632,1769147555944,265.23,0.00012058,2]
[403090633,1769147556366,309.44,0.00012812,2]
[403090634,1769147625269,150.0,7.991e-05,2]
[403090635,1769147625763,150.0,8.718e-05,2]
[403090636,1769147626188,150.0,9.444e-05,2]
[403090637,1769147626579,150.0,0.00010171,2]
[403090638,1769147627000,159.14,0.00010897,2]
[403090639,1769147627427,190.97,0.00011624,2]
[403090640,1769147627821,222.79,0.0001235,2]
[403090641,1769147638981,5000.0,0.00012985,2]
[403090642,1769147654072,3827.11,0.00012985,2]
[403090643,1769147654098,82.67617514,0.00012985,2]
[403090644,1769147662024,5000.0,0.00012985,2]
[403090645,1769147685103,4917.33382486,0.00012985,2]
[403090646,1769147685128,82.66617514,0.00012985,2]
[403090647,1769147689705,-189.63674595,0.00012985,2]
[403090648,1769147689744,-254.62,0.00013077,2]
[403090649,1769147696346,150.0,7.689e-05,2]
[403090650,1769147696788,150.0,8.388e-05,2]
[403090651,1769147697177,150.0,9.087e-05,2]
[403090652,1769147697599,150.0,9.786e-05,2]
[403090653,1769147698052,150.0,0.00010485,2]
[403090654,1769147698480,150.0,0.00011184,2]
[403090655,1769147698876,150.0,0.00011883,2]
[403090656,1769147705987,-155.0,0.00013178,2]
[403090657,1769147707450,5000.0,0.00013178,2]
[403090658,1769147722922,-300.0,0.00013272,2]
[403090659,1769147722956,-300.0,0.00013272,2]
[403090660,1769147722987,-1200.0,0.00013272,2]
[403090661,1769147730515,5000.0,0.00013272,2]
[403090662,1769147755008,5000.0,0.00013273,2]
[403090663,1769147762291,300.0,0.00013272,2]
[403090665,1769147777314,4700.01,0.00013273,2]
[403090666,1769147777343,299.99,0.00013273,2]
[403090667,1769147800524,5000.0,0.00013273,2]
[403090668,1769147806083,-500.0,0.00013273,2]
[403090669,1769147806114,-500.0,0.00013273,2]
[403090670,1769147806144,-398.68510635,0.00013273,2]
[403090671,1769147806172,-500.0,0.00013273,2]
[403090672,1769147806201,-500.0,0.00013273,2]
[403090673,1769147806231,-500.0,0.00013273,2]
[403090674,1769147806263,-500.0,0.00013273,2]
[403090675,1769147806295,-501.8100445,0.00013273,2]
[403090676,1769147806324,-500.0,0.00013273,2]
[403090677,1769147806354,-505.57820228,0.00013273,2]
[403090678,1769147806530,-197.32435589,0.00013273,2]
[403090679,1769147806559,-500.0,0.00013273,2]
[403090680,1769147806588,-500.0,0.00013273,2]
[403090681,1769147806617,-500.0,0.00013273,2]
[403090682,1769147806648,-500.0,0.00013273,2]
[403090683,1769147806687,-500.0,0.00013273,2]
[403090684,1769147806716,-500.0,0.00013273,2]
[403090685,1769147806747,-500.0,0.00013273,2]
[403090686,1769147806777,-500.0,0.00013273,2]
[403090687,1769147806806,-185.84401103,0.00013275,2]
[403090688,1769147822287,1233.67326616,0.00013275,2]
[403090689,1769147822333,3766.32673384,0.00013275,2]
[403090690,1769147823027,-7550.77938573,0.00013277,2]
[403090691,1769147823062,-10000.01,0.00013277,2]
[403090692,1769147823190,-1737.63245187,0.00013277,2]
[403090693,1769147823648,500.0,0.00013273,2]
[403090694,1769147827705,619.56143273,0.00013276,2]
[403090695,1769147828326,500.0,0.00013273,2]
[403090696,1769147837423,500.0,0.00013273,2]
[403090697,1769147837755,-4980.76907,0.00013302,2]
[403090698,1769147839012,38.47186,0.00013273,2]
[403090699,1769147839039,461.52814,0.00013273,2]
[403090700,1769147839494,349.95296507,0.00013273,2]
[403090701,1769147840206,500.0,0.00013273,2]
[403090702,1769147841360,500.0,0.00013273,2]
[403090703,1769147844896,5000.0,0.00013302,2]
[403090704,1769147853601,-484.96408568,0.00013536,2]
[403090705,1769147853636,-537.92889592,0.00013536,2]
[403090706,1769147853671,-500.0,0.00013536,2]
[403090707,1769147853703,-200.48922705,0.00013536,2]
[403090708,1769147859934,-1030.4956022,0.00013537,2]
[403090709,1769147860224,-10000.01,0.00013537,2]
[403090710,1769147860366,-2412.2727032,0.00013537,2]
[403090711,1769147867151,5000.0,0.00013537,2]
[403090712,1769147882061,-300.0,0.00013537,2]
[403090713,1769147882091,-300.0,0.00013537,2]
[403090714,1769147882122,-300.0,0.00013537,2]
[403090715,1769147882156,-300.0,0.00013537,2]
[403090716,1769147882186,-300.0,0.00013537,2]
[403090717,1769147882219,-300.0,0.00013537,2]
[403090718,1769147882249,-300.0,0.00013537,2]
[403090719,1769147882278,-300.0,0.00013537,2]
[403090720,1769147882307,-300.0,0.00013537,2]
[403090721,1769147882338,-300.0,0.00013537,2]
[403090722,1769147882368,-300.0,0.00013537,2]
[403090723,1769147882400,-300.0,0.00013537,2]
[403090724,1769147882428,-300.0,0.00013537,2]
[403090725,1769147882457,-300.0,0.00013537,2]
[403090726,1769147882488,-300.0,0.00013537,2]
[403090727,1769147883192,300.0,0.00013536,2]
[403090728,1769147883252,500.0,0.00013273,2]
[403090729,1769147887255,200.01,0.00013273,2]
[403090730,1769147887280,299.99,0.00013273,2]
[403090731,1769147887511,500.0,0.00013273,2]
[403090732,1769147887577,500.0,0.00013273,2]
[403090733,1769147889405,5000.0,0.00013537,2]
[403090735,1769147897690,500.0,0.00013273,2]
[403090736,1769147897736,-4378.19579775,0.00013599,2]
[403090737,1769147899575,394.1425604,0.00013273,2]
[403090738,1769147899824,500.0,0.00013273,2]
[403090739,1769147900852,349.4758441,0.00013273,2]
[403090740,1769147900876,150.5241559,0.00013273,2]
[403090741,1769147912323,5000.0,0.00013599,2]
[403090753,1769147934302,1909.92918098,0.00013673,2]
[403090754,1769147944457,500.0,0.00013273,2]
[403090755,1769147946360,500.0,0.00013273,2]
[403090756,1769147947035,500.0,0.00013273,2]
[403090758,1769147950470,500.0,0.00013273,2]
[403090759,1769147953655,500.0,0.00013273,2]
[403090760,1769147953895,196.53,9.085e-05,2]
[403090761,1769147954303,262.04,9.784e-05,2]
[403090762,1769147954889,327.55,0.00010483,2]
[403090763,1769147955102,393.07,0.00011182,2]
[403090764,1769147955400,326.484276,0.00013273,2]
[403090765,1769147955534,458.58,0.00011881,2]
[403090766,1769147955946,524.09,0.0001258,2]
[403090767,1769147956369,589.6,0.00013279,2]
[403090768,1769147960161,500.0,0.00013273,2]
[403090769,1769147960228,500.0,0.00013273,2]
[403090770,1769147960886,500.0,0.00013273,2]
[403090771,1769147961128,205.09849573,0.00013273,2]
[403090772,1769147961447,500.0,0.00013273,2]
[403090773,1769147961811,307.03804729,0.00013273,2]
[403090774,1769147961837,192.96195271,0.00013273,2]
[403090775,1769147962948,500.0,0.00013273,2]
[403090780,1769148004707,500.0,0.00013273,2]
[403090781,1769148004825,500.0,0.00013273,2]
[403090782,1769148004945,500.0,0.00013273,2]
[403090783,1769148004986,500.0,0.00013273,2]
[403090784,1769148005486,500.0,0.00013273,2]
[403090785,1769148005518,500.0,0.00013273,2]
[403090787,1769148008445,1170.0,0.00013672,2]
[403090789,1769148013958,500.0,0.00013273,2]
[403090790,1769148015076,500.0,0.00013273,2]
[403090792,1769148015803,500.0,0.00013273,2]
[403090793,1769148030768,169.9,9.772e-05,2]
[403090794,1769148031194,212.37,0.0001047,2]
[403090795,1769148031613,254.84,0.00011168,2]
[403090796,1769148032039,297.32,0.00011866,2]
[403090797,1769148032442,339.79,0.00012564,2]
[403090798,1769148032848,382.27,0.00013262,2]
[403090799,1769148055144,155.0,0.00013176,2]
[403090800,1769148064160,500.0,0.00013273,2]
[403090801,1769148071026,500.0,0.00013273,2]
[403090802,1769148073746,608.01842307,0.00013273,2]
[403090803,1769148079719,217.53962422,0.00013273,2]
[403090804,1769148079743,282.46037578,0.00013273,2]
[403090805,1769148080485,500.0,0.00013273,2]
[403090806,1769148081070,500.0,0.00013273,2]
[403090807,1769148081514,500.0,0.00013273,2]
[403090808,1769148094547,-500.0,0.00013673,2]
[403090809,1769148094576,-500.0,0.00013673,2]
[403090810,1769148094609,-500.0,0.00013673,2]
[403090811,1769148094640,-500.0,0.00013673,2]
[403090812,1769148094670,-300.0,0.00013673,2]
[403090813,1769148094699,-615.0,0.00013673,2]
[403090814,1769148094728,-500.0,0.00013698,2]
[403090815,1769148094759,-500.0,0.00013698,2]
[403090816,1769148094788,-500.0,0.00013698,2]
[403090817,1769148094819,-522.39932914,0.00013698,2]
[403090818,1769148095104,-300.0,0.00013698,2]
[403090819,1769148095134,-404.29324548,0.00013698,2]
[403090820,1769148095165,-567.906107,0.00013699,2]
[403090821,1769148095195,-501.55209363,0.00013699,2]
[403090822,1769148095225,-233.0507849,0.00013699,2]
[403090823,1769148095259,-296.67570149,0.00013699,2]
[403090824,1769148095523,-500.0,0.00013699,2]
[403090825,1769148095551,-500.0,0.00013699,2]
[403090826,1769148095583,-500.0,0.00013699,2]
[403090827,1769148095612,-500.0,0.00013699,2]
[403090828,1769148095644,-500.0,0.00013699,2]
[403090829,1769148095674,-165.64143013,0.00013699,2]
[403090830,1769148095785,-61.77127474,0.00013699,2]
[403090831,1769148095813,-500.0,0.00013699,2]
[403090832,1769148095842,-500.0,0.00013699,2]
[403090833,1769148095873,-500.0,0.00013699,2]
[403090834,1769148095903,-500.0,0.00013699,2]
[403090835,1769148095945,-502.61860429,0.00013699,2]
[403090836,1769148095980,-526.19318848,0.00013699,2]
[403090837,1769148096011,-500.0,0.00013699,2]
[403090838,1769148096046,-500.0,0.00013699,2]
[403090839,1769148096078,-500.0,0.00013699,2]
[403090840,1769148096111,-354.91505599,0.00013699,2]
[403090841,1769148096157,-500.0,0.00013699,2]
[403090842,1769148096190,-500.0,0.00013699,2]
[403090843,1769148096221,-500.0,0.00013699,2]
[403090844,1769148096255,-500.0,0.00013699,2]
[403090845,1769148096286,-500.0,0.00013699,2]
[403090846,1769148096320,-347.42013826,0.00013699,2]
[403090847,1769148096352,-500.0,0.00013699,2]
[403090848,1769148096385,-500.0,0.00013699,2]
[403090849,1769148096417,-606.35052868,0.00013699,2]
[403090850,1769148096449,-500.0,0.00013699,2]
[403090851,1769148100194,-561.57776598,0.00013699,2]
[403090852,1769148100226,-443.94207122,0.00013699,2]
[403090853,1769148100261,-500.0,0.00013699,2]
[403090854,1769148100294,-159.8573706,0.00013699,2]
[403090855,1769148100326,-479.24979799,0.00013699,2]
[403090856,1769148100358,-313.62551045,0.00013699,2]
[403090857,1769148100395,-500.0,0.00013699,2]
[403090858,1769148100427,-503.65901574,0.00013699,2]
[403090859,1769148100461,-500.0,0.00013699,2]
[403090860,1769148100493,-500.0,0.00013699,2]
[403090861,1769148100523,-500.0,0.00013699,2]
[403090862,1769148100672,-500.0,0.00013699,2]
[403090863,1769148100704,-500.0,0.00013699,2]
[403090864,1769148100735,-3830.92132304,0.00013721,2]
[403090865,1769148100940,-599.19839124,0.00013821,2]
[403090866,1769148100971,-1000.0,0.00013821,2]
[403090867,1769148101001,-1000.0,0.00013821,2]
[403090868,1769148101033,-500.0,0.00013821,2]
[403090869,1769148101063,-1000.0,0.00013821,2]
[403090870,1769148101094,-801.61321752,0.00013821,2]
[403090871,1769148103608,-171.13,0.00012605,2]
[403090872,1769148103641,-192.52,0.00013305,2]
[403090873,1769148103670,-198.38678248,0.00013821,2]
[403090874,1769148103700,-1000.0,0.00013821,2]
[403090875,1769148103730,-1000.0,0.00013821,2]
[403090876,1769148103759,-1000.0,0.00013821,2]
[403090877,1769148103788,-1000.0,0.00013821,2]
[403090878,1769148103989,-1000.0,0.00013821,2]
[403090879,1769148104020,-1000.0,0.00013821,2]
[403090880,1769148104061,-500.0,0.00013821,2]
[403090881,1769148104099,-1000.0,0.00013821,2]
[403090882,1769148104133,-1137.03731575,0.00013821,2]
[403090883,1769148104296,-1000.0,0.00013821,2]
[403090884,1769148104331,-924.35602029,0.00013821,2]
[403090885,1769148104362,-1000.0,0.00013821,2]
[403090886,1769148104398,-300.0,0.00013972,2]
[403090887,1769148104432,-300.0,0.00013972,2]
[403090888,1769148104466,-300.0,0.00013972,2]
[403090889,1769148104497,-300.0,0.00013972,2]
[403090890,1769148104527,-300.0,0.00013972,2]
[403090891,1769148104556,-300.0,0.00013972,2]
[403090892,1769148104588,-251.29795942,0.00013972,2]
[403090893,1769148128864,500.0,0.00013273,2]
[403090894,1769148138008,500.0,0.00013273,2]
[403090895,1769148138820,300.0,0.00013673,2]
[403090896,1769148152593,221.18424187,0.00013573,2]
[403090898,1769148170813,153.4943185,0.00013321,2]
[403090899,1769148183174,1011.81784455,0.00013573,2]
[403090900,1769148183751,500.0,0.00013273,2]
[403090901,1769148201011,369.67467589,0.00013273,2]
[403090902,1769148202387,500.0,0.00013273,2]
[403090903,1769148205806,1205.0,0.0001369,2]
[403090904,1769148222535,-543.21787469,0.00013699,2]
[403090905,1769148222567,-619.77328935,0.00013699,2]
[403090906,1769148222598,-187.74085301,0.00013699,2]
[403090907,1769148222630,-500.68007132,0.00013699,2]
[403090908,1769148222663,-531.9506174,0.00013699,2]
[403090909,1769148222695,-501.04668777,0.00013699,2]
[403090910,1769148222725,-500.0,0.00013699,2]
[403090911,1769148222757,-500.0,0.00013699,2]
[403090912,1769148222792,-548.47444081,0.00013699,2]
[403090913,1769148222824,-297.94773281,0.00013699,2]
[403090914,1769148238562,-7181.52555193,0.00013821,2]
[403090915,1769148245731,-500.0,0.00013273,2]
[403090916,1769148245763,-500.0,0.00013273,2]
[403090917,1769148245795,-947.38337556,0.00013682,2]
[403090918,1769148245872,-6105.24324888,0.00013821,2]
[403090919,1769148251483,-500.0,0.00013273,2]
[403090920,1769148251515,-500.0,0.00013273,2]
[403090921,1769148257702,500.0,0.00013273,2]
[403090922,1769148257912,300.0,0.00013673,2]
[403090923,1769148260542,5000.0,0.00013691,2]
[403090924,1769148268309,2200.01,0.00013691,2]
[403090925,1769148268335,1852.60662444,0.00013691,2]
[403090927,1769148303150,180.91,0.00011485,2]
[403090928,1769148303577,226.14,0.00012305,2]
[403090929,1769148303983,271.36,0.00013125,2]
[403090930,1769148318280,500.0,0.00013273,2]
[403090931,1769148318647,500.0,0.00013273,2]
[403090932,1769148318688,500.0,0.00013273,2]
[403090933,1769148364343,500.0,0.00013273,2]
[403090934,1769148367559,500.0,0.00013273,2]
[403090935,1769148374597,500.0,0.00013273,2]
[403090936,1769148374653,300.0,0.00013673,2]
[403090937,1769148376910,182.96,0.00012661,2]
[403090938,1769148377313,219.56,0.00013505,2]
[403090947,1769148443202,500.0,0.00013273,2]
[403090948,1769148443294,514.08224453,0.00013273,2]
[403090949,1769148443393,500.0,0.00013273,2]
[403090950,1769148447151,157.35,0.0001265,2]
[403090951,1769148447572,188.82,0.00013493,2]
[403090953,1769148490340,500.0,0.00013273,2]
[403090954,1769148497098,500.0,0.00013273,2]
[403090955,1769148497140,300.0,0.00013673,2]
[403090956,1769148518940,162.38,0.00011627,2]
[403090957,1769148519337,189.45,0.00012354,2]
[403090958,1769148519869,216.51,0.00013081,2]
[403090959,1769148546943,500.0,0.00013273,2]
[403090960,1769148547047,500.0,0.00013273,2]
[403090961,1769148547077,500.0,0.00013273,2]
[403090962,1769148562080,500.0,0.00013273,2]
[403090963,1769148586487,150.0,8.398e-05,2]
[403090964,1769148586911,150.0,9.098e-05,2]
[403090965,1769148587340,150.0,9.798e-05,2]
[403090966,1769148588390,150.0,0.00011897,2]
[403090967,1769148588786,158.64,0.00012597,2]
[403090968,1769148589233,178.47,0.00013297,2]
[403090969,1769148605491,500.0,0.00013273,2]
[403090970,1769148608081,1200.0,0.00013698,2]
[403090971,1769148608177,500.0,0.00013273,2]
[403090972,1769148612869,442.42148519,0.00013273,2]
[403090975,1769148631866,2835.1901475,0.0001308,2]
[403090976,1769148632284,-915.8,0.00013699,2]
[403090977,1769148632399,-5797.45119919,0.00013699,2]
[403090978,1769148632410,-500.0,0.00013699,2]
[403090979,1769148632420,-500.0,0.00013699,2]
[403090980,1769148632429,-500.0,0.00013699,2]
[403090981,1769148632439,-160.9064804,0.00013699,2]
[403090982,1769148632448,-502.26093255,0.00013699,2]
[403090983,1769148632458,-500.0,0.00013699,2]
[403090984,1769148632468,-500.56880236,0.00013699,2]
[403090985,1769148632479,-500.0,0.00013699,2]
[403090986,1769148632490,-500.0,0.00013699,2]
[403090987,1769148632500,-500.0,0.00013699,2]
[403090988,1769148632512,-500.0,0.00013699,2]
[403090989,1769148632522,-500.0,0.00013699,2]
[403090990,1769148632533,-500.0,0.00013699,2]
[403090991,1769148632544,-500.0,0.00013699,2]
[403090992,1769148632555,-500.0,0.00013699,2]
[403090993,1769148632564,-500.0,0.00013699,2]
[403090994,1769148632574,-320.92781336,0.00013699,2]
[403091000,1769148638368,-47.67910538,0.00013699,2]
[403091001,1769148638378,-500.0,0.00013699,2]
[403091002,1769148638387,-500.0,0.00013699,2]
[403091003,1769148638397,-500.0,0.00013699,2]
[403091004,1769148638407,-527.65430761,0.00013699,2]
[403091005,1769148638418,-500.0,0.00013699,2]
[403091006,1769148638427,-500.0,0.00013699,2]
[403091007,1769148638437,-152.58064698,0.00013699,2]
[403091008,1769148638446,-186.83711547,0.00013759,2]
[403091009,1769148638456,-1000.0,0.00013821,2]
[403091010,1769148638465,-1000.0,0.00013821,2]
[403091011,1769148638474,-1000.0,0.00013821,2]
[403091012,1769148638484,-500.0,0.00013821,2]
[403091013,1769148638494,-1000.0,0.00013821,2]
[403091014,1769148638503,-3352.05615766,0.00013896,2]
[403091015,1769148638512,-433.69300291,0.00013971,2]
[403091016,1769148638521,-300.0,0.00013972,2]
[403091017,1769148638530,-300.0,0.00013972,2]
[403091018,1769148638540,-300.0,0.00013972,2]
[403091019,1769148638556,-300.0,0.00013972,2]
[403091020,1769148638566,-300.0,0.00013972,2]
[403091021,1769148638575,-300.0,0.00013972,2]
[403091022,1769148638584,-300.0,0.00013972,2]
[403091023,1769148638594,-300.0,0.00013972,2]
[403091024,1769148638603,-300.0,0.00013972,2]
[403091025,1769148638613,-171.06276026,0.00013972,2]
[403091080,1769148640346,-128.93723974,0.00013972,2]
[403091082,1769148640356,-300.0,0.00013972,2]
[403091084,1769148640366,-300.0,0.00013972,2]
[403091086,1769148640376,-300.0,0.00013972,2]
[403091088,1769148640385,-300.0,0.00013972,2]
[403091090,1769148640395,-300.0,0.00013972,2]
[403091092,1769148640404,-294.6811056,0.00013973,2]
[403091094,1769148640414,-1981.93388938,0.0001399,2]
[403091365,1769148646164,-827.014088,0.0001399,2]
[403091366,1769148646176,-8994.54435764,0.0001399,2]
[403091367,1769148654184,150.0,8.41e-05,2]
[403091368,1769148654680,150.0,9.175e-05,2]
[403091369,1769148655067,150.0,9.939e-05,2]
[403091370,1769148655478,150.0,0.00010704,2]
[403091371,1769148665530,500.0,0.00013273,2]
[403091372,1769148669945,500.0,0.00013273,2]
[403091373,1769148671809,500.0,0.00013273,2]
[403091374,1769148676398,500.0,0.00013273,2]
[403091375,1769148678093,485.28836731,0.00013273,2]
[403091376,1769148678120,14.71163269,0.00013273,2]
[403091377,1769148680115,500.0,0.00013273,2]
[403091378,1769148726920,500.0,0.00013273,2]
[403091379,1769148729455,-300.0,0.00013698,2]
[403091380,1769148731590,500.0,0.00013273,2]
[403091381,1769148732536,300.0,0.00012992,2]
[403091382,1769148737046,300.0,0.00013673,2]
[403091383,1769148737350,500.0,0.00013273,2]
[403091384,1769148783039,300.0,0.00013698,2]
[403091385,1769148793181,241.0862501,0.00013273,2]
[403091386,1769148797535,500.0,0.00013273,2]
[403091387,1769148800502,500.0,0.00013273,2]
[403091388,1769148842761,240.0,0.00013698,2]
[403091389,1769148844109,500.0,0.00013273,2]
[403091390,1769148854125,500.0,0.00013273,2]
[403091391,1769148859729,300.0,0.00013673,2]
[403091392,1769148860024,500.0,0.00013273,2]
[403091393,1769148907231,295.0,0.00013698,2]
[403091394,1769148919321,500.0,0.00013273,2]
[403091395,1769148922301,500.0,0.00013273,2]
[403091396,1769148967835,500.0,0.00013273,2]
[403091397,1769148970229,336.52111142,0.0001541,120]
[403091398,1769148977397,300.0,0.00013673,2]
[403091399,1769148977532,500.0,0.00013273,2]
[403091400,1769149006923,170.7390773,0.00012911,2]
[403091401,1769149023308,500.0,0.00013273,2]
[403091402,1769149036452,500.0,0.00013273,2]
[403091403,1769149038722,453.1846726,0.00013273,2]
[403091404,1769149038751,46.8153274,0.00013273,2]
[403091405,1769149042754,628.09259892,0.00013698,2]
[403091406,1769149050278,500.0,0.00013698,2]
[403091407,1769149096870,300.0,0.00013673,2]
[403091408,1769149096944,500.0,0.00013273,2]
[403091410,1769149144333,163.34818571,0.00013273,2]
[403091411,1769149160263,500.0,0.00013273,2]
[403091412,1769149160521,500.0,0.00013273,2]
[403091413,1769149160593,500.0,0.00013273,2]
[403091414,1769149160901,500.0,0.00013273,2]
[403091415,1769149161411,500.0,0.00013273,2]
[403091416,1769149165834,1122.84971583,0.00013698,2]
[403091417,1769149173689,720.78630622,0.00013698,2]
[403091418,1769149182433,1488.42374226,0.00013698,2]
[403091419,1769149190665,316.4517258,0.00013698,2]
[403091420,1769149192976,200.0,0.00013698,2]
[403091421,1769149193012,500.0,0.00013698,2]
[403091422,1769149201934,500.0,0.00013698,2]
[403091423,1769149202128,300.0,0.00013698,2]
[403091424,1769149203478,213.24239786,0.00013273,2]
[403091425,1769149203504,17.66999298,0.00013273,2]
[403091426,1769149204140,500.0,0.00013273,2]
[403091427,1769149204935,500.0,0.00013273,2]
[403091428,1769149206421,500.0,0.00013698,2]
[403091429,1769149206700,500.0,0.00013273,2]
[403091430,1769149208442,500.0,0.00013273,2]
[403091431,1769149217109,316.23863416,0.00013698,2]
[403091432,1769149217145,169.67467589,0.00013698,2]
[403091433,1769149217177,500.0,0.00013698,2]
[403091434,1769149217213,226.67559268,0.00013698,2]
[403091435,1769149217247,500.0,0.00013698,2]
[403091436,1769149218757,500.0,0.00013273,2]
[403091437,1769149219221,300.0,0.00013673,2]
[403091438,1769149222383,500.0,0.00013698,2]
[403091439,1769149222450,273.32440732,0.00013698,2]
[403091440,1769149229426,500.0,0.00013698,2]
[403091441,1769149229461,500.0,0.00013698,2]
[403091442,1769149229495,500.0,0.00013698,2]
[403091443,1769149237023,500.81815474,0.00013698,2]
[403091444,1769149237054,500.0,0.00013698,2]
[403091445,1769149237088,500.0,0.00013698,2]
[403091446,1769149237121,250.58551036,0.00013698,2]
[403091447,1769149240369,500.0,0.00013698,2]
[403091448,1769149240458,445.02303187,0.00013698,2]
[403091449,1769149240484,54.97696813,0.00013698,2]
[403091450,1769149243721,426.32450968,0.00013698,2]
[403091451,1769149246878,500.0,0.00013698,2]
[403091452,1769149246926,500.0,0.00013698,2]
[403091453,1769149251036,500.0,0.00013698,2]
[403091454,1769149251103,557.9338605,0.00013698,2]
[403091455,1769149254131,5659.4913296,0.00012875,2]
[403091456,1769149256318,191.48062914,0.00013698,2]
[403091457,1769149256350,500.0,0.00013698,2]
[403091458,1769149256382,294.6811056,0.00013698,2]
[403091459,1769149256949,500.0,0.00013698,2]
[403091460,1769149257001,315.12159735,0.00013698,2]
[403091461,1769149257030,184.87840265,0.00013698,2]
[403091462,1769149257073,500.0,0.00013698,2]
[403091463,1769149257126,300.0,0.00013698,2]
[403091464,1769149266338,409.01147932,0.00013698,2]
[403091465,1769149271311,3433.5059441,0.00013698,2]
[403091466,1769149275596,451.49711237,0.00013698,2]
[403091467,1769149275637,500.0,0.00013698,2]
[403091468,1769149279119,4221.11706156,0.00013698,2]
[403091469,1769149279379,778.88293844,0.00013698,2]
[403091470,1769149279458,500.0,0.00013273,2]
[403091471,1769149281054,500.0,0.00013273,2]
[403091472,1769149287348,2969.25082657,0.00013698,2]
[403091473,1769149294825,317.17791627,0.00013698,2]
[403091474,1769149299884,300.0,0.00013698,2]
[403091475,1769149299919,500.0,0.00013698,2]
[403091476,1769149299954,183.76136584,0.00013698,2]
[403091477,1769149300072,500.0,0.00013698,2]
[403091478,1769149300125,453.9252293,0.00013698,2]
[403091479,1769149302696,612.79447393,0.00013698,2]
[403091480,1769149303345,2384.21724965,0.00013698,2]
[403091481,1769149303373,2615.78275035,0.00013698,2]
[403091482,1769149318275,1983.30713908,0.00013698,2]
[403091483,1769149322829,300.0,0.00013698,2]
[403091484,1769149326302,5000.0,0.00013698,2]
[403091485,1769149329562,100.92011057,0.00013273,2]
[403091486,1769149329589,399.07988943,0.00013273,2]
[403091487,1769149330573,500.0,0.00013273,2]
[403091488,1769149335067,3371.90740108,0.00013698,2]
[403091489,1769149339397,500.0,0.00013273,2]
[403091490,1769149340397,300.0,0.00013673,2]
[403091491,1769149343371,1439.99335618,0.00013698,2]
[403091492,1769149351506,3489.02935331,0.00013698,2]
[403091493,1769149351535,1510.97064669,0.00013698,2]
[403091494,1769149359579,3413.0216069,0.00013698,2]
[403091495,1769149367395,5000.0,0.00013698,2]